{"text_format":"1","workbook":"xlsx","n_sheets":4,"sheets":["Рейтинг","Свободная пирамида","Комбинированная пирамида","Динамичесская пирамида"],"not_rendered":{"charts":0,"images":0,"macros":1,"external_links":0,"defined_names":1,"comments":0,"pivot_tables":0},"unopened":[],"bounds":{"document_bytes":16777216,"sheet_cells":100000,"rows_first":2000,"rows_last":500,"rows_between":2000,"halvings":0,"cell_chars":16384,"cell_head_chars":4096},"cells_cut":0,"cells_raw":0,"read":"whole","date_system":"1900"}

{"sheet":"Рейтинг","index":0,"n_rows":17,"n_cols":11,"rows_kept":17,"cut":false,"hidden":false,"merged":[[4,1,4,10],[9,1,9,10],[14,1,14,10],[2,7,2,10],[2,1,3,1],[2,6,3,6],[2,5,3,5],[2,4,3,4],[2,3,3,3],[2,2,3,2]]}
[]
[]
[null,"k","ФИО","Очки рейтинга","Количество выиграных партий","Количество проиграных партий","Забитие с разбоя","Максимальная серия"]
[null,null,null,null,null,null,null,"серия 5 ","серия 6","серия 7 ","серия 8"]
[null,"Свободная пирамида"]
[null,{"$f":"_xlfn.RANK.EQ(D6,$D$6:$D$7,0)","v":1},{"$f":"'Свободная пирамида'!C98","v":"Малюта Денис Александрович"},{"$f":"'Свободная пирамида'!D98","v":8},{"$f":"'Свободная пирамида'!E98","v":1},{"$f":"'Свободная пирамида'!F98","v":0},{"$f":"'Свободная пирамида'!G98","v":0},{"$f":"'Свободная пирамида'!H98","v":0},{"$f":"'Свободная пирамида'!I98","v":0},{"$f":"'Свободная пирамида'!J98","v":0},{"$f":"'Свободная пирамида'!K98","v":0}]
[null,{"$f":"_xlfn.RANK.EQ(D7,$D$6:$D$7,0)","v":2},{"$f":"'Свободная пирамида'!C8","v":"Станкевич Михаил Николаевич"},{"$f":"'Свободная пирамида'!D8","v":0},{"$f":"'Свободная пирамида'!E8","v":0},{"$f":"'Свободная пирамида'!F8","v":0},{"$f":"'Свободная пирамида'!G8","v":0},{"$f":"'Свободная пирамида'!H8","v":0},{"$f":"'Свободная пирамида'!I8","v":0},{"$f":"'Свободная пирамида'!J8","v":0},{"$f":"'Свободная пирамида'!K8","v":0}]
[]
[]
[null,"Комбинированная пирамида"]
[null,{"$f":"_xlfn.RANK.EQ(D11,$D$11:$D$12,0)","v":1},{"$f":"'Свободная пирамида'!C8","v":"Станкевич Михаил Николаевич"},{"$f":"'Комбинированная пирамида'!D8","v":0},{"$f":"'Комбинированная пирамида'!E8","v":0},{"$f":"'Комбинированная пирамида'!F8","v":0},{"$f":"'Комбинированная пирамида'!G8","v":0},{"$f":"'Комбинированная пирамида'!H8","v":0},{"$f":"'Комбинированная пирамида'!I8","v":0},{"$f":"'Комбинированная пирамида'!J8","v":0},{"$f":"'Комбинированная пирамида'!K8","v":0}]
[null,{"$f":"_xlfn.RANK.EQ(D12,$D$11:$D$12,0)","v":1},{"$f":"'Свободная пирамида'!C98","v":"Малюта Денис Александрович"},{"$f":"'Комбинированная пирамида'!D98","v":0},{"$f":"'Комбинированная пирамида'!E98","v":0},{"$f":"'Комбинированная пирамида'!F98","v":0},{"$f":"'Комбинированная пирамида'!G98","v":0},{"$f":"'Комбинированная пирамида'!H98","v":0},{"$f":"'Комбинированная пирамида'!I98","v":0},{"$f":"'Комбинированная пирамида'!J98","v":0},{"$f":"'Комбинированная пирамида'!K98","v":0}]
[]
[]
[null,"Динамичесская пирамида"]
[null,{"$f":"_xlfn.RANK.EQ(D16,$D$16:$D$17,0)","v":1},{"$f":"'Свободная пирамида'!C8","v":"Станкевич Михаил Николаевич"},{"$f":"'Динамичесская пирамида'!D19","v":0},{"$f":"'Динамичесская пирамида'!E19","v":0},{"$f":"'Динамичесская пирамида'!F19","v":0},{"$f":"'Динамичесская пирамида'!G19","v":0},{"$f":"'Динамичесская пирамида'!H19","v":0},{"$f":"'Динамичесская пирамида'!I19","v":0},{"$f":"'Динамичесская пирамида'!J19","v":0},{"$f":"'Динамичесская пирамида'!K19","v":0}]
[null,{"$f":"_xlfn.RANK.EQ(D17,$D$16:$D$17,0)","v":1},{"$f":"'Свободная пирамида'!C98","v":"Малюта Денис Александрович"},{"$f":"'Динамичесская пирамида'!D109","v":0},{"$f":"'Динамичесская пирамида'!E109","v":0},{"$f":"'Динамичесская пирамида'!F109","v":0},{"$f":"'Динамичесская пирамида'!G109","v":0},{"$f":"'Динамичесская пирамида'!H109","v":0},{"$f":"'Динамичесская пирамида'!I109","v":0},{"$f":"'Динамичесская пирамида'!J109","v":0},{"$f":"'Динамичесская пирамида'!K109","v":0}]

{"sheet":"Свободная пирамида","index":1,"n_rows":224,"n_cols":16,"rows_kept":224,"cut":false,"hidden":false,"merged":[[4,1,4,10],[5,1,6,1],[5,2,6,2],[5,3,6,3],[5,4,6,4],[5,5,6,5],[5,6,6,6],[5,7,5,10]]}
[null,null,null,null,null,null,null,null,null,null,null,null,null,null,"Победа в партии",8]
[null,null,null,null,null,null,null,null,null,null,null,null,null,null,"Поражение в партии",0]
[null,null,null,null,null,null,null,null,null,null,null,null,null,null,"Забитие с разбоя",1]
[null,null,null,null,null,null,null,null,null,null,null,null,null,null,"серия 5 шаров",2]
[null,"СВОБОДНАЯ ПИРАМИДА",null,null,null,null,null,null,null,null,null,null,null,null,"серия 6 шаров",4]
[null,"k","ФИО","Очки рейтинга","Количество выиграных партий","Количество проиграных партий","Забитие с разбоя","Максимальная серия",null,null,null,null,null,null,"серия 7 шаров",6]
[null,null,null,null,null,null,null,"серия 5 ","серия 6","серия 7 ","серия 8",null,null,null,"серия 8 шаров",10]
[null,1,"Станкевич Михаил Николаевич",{"$f":"SUM(D9:D97)","v":0},{"$f":"SUM(E9:E97)","v":0},{"$f":"SUM(F9:F97)","v":0},0,0,0,0,0]
[null,null,"дата",{"$f":"E9*$P$1+F9*$P$2+G9*$P$3+H9*$P$4+I9*$P$5+J9*$P$6+K9*$P$7","v":0}]
[null,null,"дата",{"$f":"E10*$P$1+F10*$P$2+G10*$P$3+H10*$P$4+I10*$P$5+J10*$P$6+K10*$P$7","v":0}]
[null,null,null,0]
[null,null,null,0]
[null,null,null,0]
[null,null,null,0]
[null,null,null,0]
[null,null,null,0]
[null,null,null,0]
[null,null,null,0]
[null,null,null,0]
[null,null,null,0]
[null,null,null,0]
[null,null,null,0]
[null,null,null,0]
[null,null,null,0]
[null,null,null,0]
[null,null,null,0]
[null,null,null,0]
[null,null,null,0]
[null,null,null,0]
[null,null,null,0]
[null,null,null,0]
[null,null,null,0]
[null,null,null,0]
[null,null,null,0]
[null,null,null,0]
[null,null,null,0]
[null,null,null,0]
[null,null,null,0]
[null,null,null,0]
[null,null,null,0]
[null,null,null,0]
[null,null,null,0]
[null,null,null,0]
[null,null,null,0]
[null,null,null,0]
[null,null,null,0]
[null,null,null,0]
[null,null,null,0]
[null,null,null,0]
[null,null,null,0]
[null,null,null,0]
[null,null,null,0]
[null,null,null,0]
[null,null,null,0]
[null,null,null,0]
[null,null,null,0]
[null,null,null,0]
[null,null,null,0]
[null,null,null,0]
[null,null,null,0]
[null,null,null,0]
[null,null,null,0]
[null,null,null,0]
[null,null,null,0]
[null,null,null,0]
[null,null,null,0]
[null,null,null,0]
[null,null,null,0]
[null,null,null,0]
[null,null,null,0]
[null,null,null,0]
[null,null,null,0]
[null,null,null,0]
[null,null,null,{"$f":"E74*$P$1+F74*$P$2+G74*$P$3+H74*$P$4+I74*$P$5+J74*$P$6+K74*$P$7","v":0}]
[null,null,null,0]
[null,null,null,0]
[null,null,null,0]
[null,null,null,0]
[null,null,null,0]
[null,null,null,0]
[null,null,null,0]
[null,null,null,0]
[null,null,null,0]
[null,null,null,0]
[null,null,null,0]
[null,null,null,0]
[null,null,null,0]
[null,null,null,0]
[null,null,null,0]
[null,null,null,0]
[null,null,null,0]
[null,null,null,0]
[null,null,null,0]
[null,null,null,0]
[null,null,null,0]
[null,null,null,0]
[null,null,null,0]
[null,2,"Малюта Денис Александрович",{"$f":"SUM(D99:D224)","v":8},{"$f":"SUM(E99:E224)","v":1},0,0,0,0,0,0]
[null,null,"дата",8,1]
[null,null,"дата",0]
[null,null,"дата",0]
[null,null,"дата",0]
[null,null,null,0]
[null,null,null,0]
[null,null,null,0]
[null,null,null,0]
[null,null,null,0]
[null,null,null,0]
[null,null,null,0]
[null,null,null,0]
[null,null,null,0]
[null,null,null,0]
[null,null,null,0]
[null,null,null,0]
[null,null,null,0]
[null,null,null,0]
[null,null,null,0]
[null,null,null,0]
[null,null,null,0]
[null,null,null,0]
[null,null,null,0]
[null,null,null,0]
[null,null,null,0]
[null,null,null,0]
[null,null,null,0]
[null,null,null,0]
[null,null,null,0]
[null,null,null,0]
[null,null,null,0]
[null,null,null,0]
[null,null,null,0]
[null,null,null,0]
[null,null,null,0]
[null,null,null,0]
[null,null,null,0]
[null,null,null,0]
[null,null,null,0]
[null,null,null,{"$f":"E138*$P$1+F138*$P$2+G138*$P$3+H138*$P$4+I138*$P$5+J138*$P$6+K138*$P$7","v":0}]
[null,null,null,0]
[null,null,null,0]
[null,null,null,0]
[null,null,null,0]
[null,null,null,0]
[null,null,null,0]
[null,null,null,0]
[null,null,null,0]
[null,null,null,0]
[null,null,null,0]
[null,null,null,0]
[null,null,null,0]
[null,null,null,0]
[null,null,null,0]
[null,null,null,0]
[null,null,null,0]
[null,null,null,0]
[null,null,null,0]
[null,null,null,0]
[null,null,null,0]
[null,null,null,0]
[null,null,null,0]
[null,null,null,0]
[null,null,null,0]
[null,null,null,0]
[null,null,null,0]
[null,null,null,0]
[null,null,null,0]
[null,null,null,0]
[null,null,null,0]
[null,null,null,0]
[null,null,null,0]
[null,null,null,0]
[null,null,null,0]
[null,null,null,0]
[null,null,null,0]
[null,null,null,0]
[null,null,null,0]
[null,null,null,0]
[null,null,null,0]
[null,null,null,0]
[null,null,null,0]
[null,null,null,0]
[null,null,null,0]
[null,null,null,0]
[null,null,null,0]
[null,null,null,0]
[null,null,null,0]
[null,null,null,0]
[null,null,null,0]
[null,null,null,0]
[null,null,null,0]
[null,null,null,0]
[null,null,null,0]
[null,null,null,0]
[null,null,null,0]
[null,null,null,0]
[null,null,null,0]
[null,null,null,0]
[null,null,null,0]
[null,null,null,0]
[null,null,null,0]
[null,null,null,0]
[null,null,null,{"$f":"E202*$P$1+F202*$P$2+G202*$P$3+H202*$P$4+I202*$P$5+J202*$P$6+K202*$P$7","v":0}]
[null,null,null,0]
[null,null,null,0]
[null,null,null,0]
[null,null,null,0]
[null,null,null,0]
[null,null,null,0]
[null,null,null,0]
[null,null,null,0]
[null,null,null,0]
[null,null,null,0]
[null,null,null,0]
[null,null,null,0]
[null,null,null,0]
[null,null,null,0]
[null,null,null,0]
[null,null,null,0]
[null,null,null,0]
[null,null,null,0]
[null,null,null,0]
[null,null,null,0]
[null,null,null,0]
[null,null,null,0]

{"sheet":"Комбинированная пирамида","index":2,"n_rows":224,"n_cols":16,"rows_kept":224,"cut":false,"hidden":false,"merged":[[5,3,6,3],[5,5,6,5],[5,6,6,6],[5,7,5,10],[4,1,4,10],[5,2,6,2],[5,1,6,1],[5,4,6,4]]}
[null,null,null,null,null,null,null,null,null,null,null,null,null,null,"Победа в партии",8]
[null,null,null,null,null,null,null,null,null,null,null,null,null,null,"Поражение в партии",0]
[null,null,null,null,null,null,null,null,null,null,null,null,null,null,"Забитие с разбоя",1]
[null,null,null,null,null,null,null,null,null,null,null,null,null,null,"серия 5 шаров",2]
[null,"КОМБИНИРОВАННАЯ ПИРАМИДА",null,null,null,null,null,null,null,null,null,null,null,null,"серия 6 шаров",4]
[null,"k","ФИО","Очки рейтинга","Количество выиграных партий","Количество проиграных партий","Забитие с разбоя","Максимальная серия",null,null,null,null,null,null,"серия 7 шаров",6]
[null,null,null,null,null,null,null,"серия 5 ","серия 6","серия 7 ","серия 8",null,null,null,"серия 8 шаров",10]
[null,{"$f":"'Свободная пирамида'!B8","v":1},{"$f":"'Свободная пирамида'!C8","v":"Станкевич Михаил Николаевич"},{"$f":"SUM(D9:D97)","v":0},0,0,0,0,0,0,0]
[null,null,"дата",{"$f":"E9*$P$1+F9*$P$2+G9*$P$3+H9*$P$4+I9*$P$5+J9*$P$6+K9*$P$7","v":0}]
[null,null,"дата",{"$f":"E10*$P$1+F10*$P$2+G10*$P$3+H10*$P$4+I10*$P$5+J10*$P$6+K10*$P$7","v":0}]
[null,null,null,0]
[null,null,null,0]
[null,null,null,0]
[null,null,null,0]
[null,null,null,0]
[null,null,null,0]
[null,null,null,0]
[null,null,null,0]
[null,null,null,0]
[null,null,null,0]
[null,null,null,0]
[null,null,null,0]
[null,null,null,0]
[null,null,null,0]
[null,null,null,0]
[null,null,null,0]
[null,null,null,0]
[null,null,null,0]
[null,null,null,0]
[null,null,null,0]
[null,null,null,0]
[null,null,null,0]
[null,null,null,0]
[null,null,null,0]
[null,null,null,0]
[null,null,null,0]
[null,null,null,0]
[null,null,null,0]
[null,null,null,0]
[null,null,null,0]
[null,null,null,0]
[null,null,null,0]
[null,null,null,0]
[null,null,null,0]
[null,null,null,0]
[null,null,null,0]
[null,null,null,0]
[null,null,null,0]
[null,null,null,0]
[null,null,null,0]
[null,null,null,0]
[null,null,null,0]
[null,null,null,0]
[null,null,null,0]
[null,null,null,0]
[null,null,null,0]
[null,null,null,0]
[null,null,null,0]
[null,null,null,0]
[null,null,null,0]
[null,null,null,0]
[null,null,null,0]
[null,null,null,0]
[null,null,null,0]
[null,null,null,0]
[null,null,null,0]
[null,null,null,0]
[null,null,null,0]
[null,null,null,0]
[null,null,null,0]
[null,null,null,0]
[null,null,null,0]
[null,null,null,0]
[null,null,null,{"$f":"E74*$P$1+F74*$P$2+G74*$P$3+H74*$P$4+I74*$P$5+J74*$P$6+K74*$P$7","v":0}]
[null,null,null,0]
[null,null,null,0]
[null,null,null,0]
[null,null,null,0]
[null,null,null,0]
[null,null,null,0]
[null,null,null,0]
[null,null,null,0]
[null,null,null,0]
[null,null,null,0]
[null,null,null,0]
[null,null,null,0]
[null,null,null,0]
[null,null,null,0]
[null,null,null,0]
[null,null,null,0]
[null,null,null,0]
[null,null,null,0]
[null,null,null,0]
[null,null,null,0]
[null,null,null,0]
[null,null,null,0]
[null,null,null,0]
[null,{"$f":"'Свободная пирамида'!B98","v":2},{"$f":"'Свободная пирамида'!C98","v":"Малюта Денис Александрович"},{"$f":"SUM(D99:D224)","v":0},0,0,0,0,0,0,0]
[null,null,"дата",0]
[null,null,"дата",0]
[null,null,"дата",0]
[null,null,"дата",0]
[null,null,null,0]
[null,null,null,0]
[null,null,null,0]
[null,null,null,0]
[null,null,null,0]
[null,null,null,0]
[null,null,null,0]
[null,null,null,0]
[null,null,null,0]
[null,null,null,0]
[null,null,null,0]
[null,null,null,0]
[null,null,null,0]
[null,null,null,0]
[null,null,null,0]
[null,null,null,0]
[null,null,null,0]
[null,null,null,0]
[null,null,null,0]
[null,null,null,0]
[null,null,null,0]
[null,null,null,0]
[null,null,null,0]
[null,null,null,0]
[null,null,null,0]
[null,null,null,0]
[null,null,null,0]
[null,null,null,0]
[null,null,null,0]
[null,null,null,0]
[null,null,null,0]
[null,null,null,0]
[null,null,null,0]
[null,null,null,0]
[null,null,null,0]
[null,null,null,{"$f":"E138*$P$1+F138*$P$2+G138*$P$3+H138*$P$4+I138*$P$5+J138*$P$6+K138*$P$7","v":0}]
[null,null,null,0]
[null,null,null,0]
[null,null,null,0]
[null,null,null,0]
[null,null,null,0]
[null,null,null,0]
[null,null,null,0]
[null,null,null,0]
[null,null,null,0]
[null,null,null,0]
[null,null,null,0]
[null,null,null,0]
[null,null,null,0]
[null,null,null,0]
[null,null,null,0]
[null,null,null,0]
[null,null,null,0]
[null,null,null,0]
[null,null,null,0]
[null,null,null,0]
[null,null,null,0]
[null,null,null,0]
[null,null,null,0]
[null,null,null,0]
[null,null,null,0]
[null,null,null,0]
[null,null,null,0]
[null,null,null,0]
[null,null,null,0]
[null,null,null,0]
[null,null,null,0]
[null,null,null,0]
[null,null,null,0]
[null,null,null,0]
[null,null,null,0]
[null,null,null,0]
[null,null,null,0]
[null,null,null,0]
[null,null,null,0]
[null,null,null,0]
[null,null,null,0]
[null,null,null,0]
[null,null,null,0]
[null,null,null,0]
[null,null,null,0]
[null,null,null,0]
[null,null,null,0]
[null,null,null,0]
[null,null,null,0]
[null,null,null,0]
[null,null,null,0]
[null,null,null,0]
[null,null,null,0]
[null,null,null,0]
[null,null,null,0]
[null,null,null,0]
[null,null,null,0]
[null,null,null,0]
[null,null,null,0]
[null,null,null,0]
[null,null,null,0]
[null,null,null,0]
[null,null,null,0]
[null,null,null,{"$f":"E202*$P$1+F202*$P$2+G202*$P$3+H202*$P$4+I202*$P$5+J202*$P$6+K202*$P$7","v":0}]
[null,null,null,0]
[null,null,null,0]
[null,null,null,0]
[null,null,null,0]
[null,null,null,0]
[null,null,null,0]
[null,null,null,0]
[null,null,null,0]
[null,null,null,0]
[null,null,null,0]
[null,null,null,0]
[null,null,null,0]
[null,null,null,0]
[null,null,null,0]
[null,null,null,0]
[null,null,null,0]
[null,null,null,0]
[null,null,null,0]
[null,null,null,0]
[null,null,null,0]
[null,null,null,0]
[null,null,null,0]

{"sheet":"Динамичесская пирамида","index":3,"n_rows":235,"n_cols":16,"rows_kept":235,"cut":false,"hidden":false,"merged":[[5,3,6,3],[5,5,6,5],[5,6,6,6],[5,7,5,10],[4,1,4,10],[5,2,6,2],[5,1,6,1],[5,4,6,4]]}
[null,null,null,null,null,null,null,null,null,null,null,null,null,null,"Победа в партии",8]
[null,null,null,null,null,null,null,null,null,null,null,null,null,null,"Поражение в партии",0]
[null,null,null,null,null,null,null,null,null,null,null,null,null,null,"Забитие с разбоя",1]
[null,null,null,null,null,null,null,null,null,null,null,null,null,null,"серия 5 шаров",2]
[null,"ДИНАМИЧЕССКАЯ ПИРАМИДА",null,null,null,null,null,null,null,null,null,null,null,null,"серия 6 шаров",4]
[null,"k","ФИО","Очки рейтинга","Количество выиграных партий","Количество проиграных партий","Забитие с разбоя","Максимальная серия",null,null,null,null,null,null,"серия 7 шаров",6]
[null,null,null,null,null,null,null,"серия 5 ","серия 6","серия 7 ","серия 8",null,null,null,"серия 8 шаров",10]
[null,1]
[null,2]
[null,3]
[null,4]
[null,5]
[null,6]
[null,7]
[null,8]
[null,9]
[null,10]
[]
[null,{"$f":"'Свободная пирамида'!B8","v":1},{"$f":"'Свободная пирамида'!C8","v":"Станкевич Михаил Николаевич"},{"$f":"SUM(D20:D108)","v":0},{"$f":"SUM(E20:E108)","v":0},0,0,0,0,0,0]
[null,null,null,{"$f":" E20*$P$1+F20*$P$2+G20*$P$3+H20*$P$4+I20*$P$5+J20*$P$6+K20*$P$7","v":0}]
[null,null,null,{"$f":" E21*$P$1+F21*$P$2+G21*$P$3+H21*$P$4+I21*$P$5+J21*$P$6+K21*$P$7","v":0}]
[null,null,null,0]
[null,null,null,0]
[null,null,null,0]
[null,null,null,0]
[null,null,null,0]
[null,null,null,0]
[null,null,null,0]
[null,null,null,0]
[null,null,null,0]
[null,null,null,0]
[null,null,null,0]
[null,null,null,0]
[null,null,null,0]
[null,null,null,0]
[null,null,null,0]
[null,null,null,0]
[null,null,null,0]
[null,null,null,0]
[null,null,null,0]
[null,null,null,0]
[null,null,null,0]
[null,null,null,0]
[null,null,null,0]
[null,null,null,0]
[null,null,null,0]
[null,null,null,0]
[null,null,null,0]
[null,null,null,0]
[null,null,null,0]
[null,null,null,0]
[null,null,null,0]
[null,null,null,0]
[null,null,null,0]
[null,null,null,0]
[null,null,null,0]
[null,null,null,0]
[null,null,null,0]
[null,null,null,0]
[null,null,null,0]
[null,null,null,0]
[null,null,null,0]
[null,null,null,0]
[null,null,null,0]
[null,null,null,0]
[null,null,null,0]
[null,null,null,0]
[null,null,null,0]
[null,null,null,0]
[null,null,null,0]
[null,null,null,0]
[null,null,null,0]
[null,null,null,0]
[null,null,null,0]
[null,null,null,0]
[null,null,null,0]
[null,null,null,0]
[null,null,null,0]
[null,null,null,0]
[null,null,null,0]
[null,null,null,0]
[null,null,null,0]
[null,null,null,0]
[null,null,null,0]
[null,null,null,{"$f":" E85*$P$1+F85*$P$2+G85*$P$3+H85*$P$4+I85*$P$5+J85*$P$6+K85*$P$7","v":0}]
[null,null,null,0]
[null,null,null,0]
[null,null,null,0]
[null,null,null,0]
[null,null,null,0]
[null,null,null,0]
[null,null,null,0]
[null,null,null,0]
[null,null,null,0]
[null,null,null,0]
[null,null,null,0]
[null,null,null,0]
[null,null,null,0]
[null,null,null,0]
[null,null,null,0]
[null,null,null,0]
[null,null,null,0]
[null,null,null,0]
[null,null,null,0]
[null,null,null,0]
[null,null,null,0]
[null,null,null,0]
[null,null,null,0]
[null,{"$f":"'Свободная пирамида'!B98","v":2},{"$f":"'Свободная пирамида'!C98","v":"Малюта Денис Александрович"},{"$f":"SUM(D110:D235)","v":0},0,0,0,0,0,0,0]
[null,null,null,0]
[null,null,null,0]
[null,null,null,0]
[null,null,null,0]
[null,null,null,0]
[null,null,null,0]
[null,null,null,0]
[null,null,null,0]
[null,null,null,0]
[null,null,null,0]
[null,null,null,0]
[null,null,null,0]
[null,null,null,0]
[null,null,null,0]
[null,null,null,0]
[null,null,null,0]
[null,null,null,0]
[null,null,null,0]
[null,null,null,0]
[null,null,null,0]
[null,null,null,0]
[null,null,null,0]
[null,null,null,0]
[null,null,null,0]
[null,null,null,0]
[null,null,null,0]
[null,null,null,0]
[null,null,null,0]
[null,null,null,0]
[null,null,null,0]
[null,null,null,0]
[null,null,null,0]
[null,null,null,0]
[null,null,null,0]
[null,null,null,0]
[null,null,null,0]
[null,null,null,0]
[null,null,null,0]
[null,null,null,0]
[null,null,null,{"$f":" E149*$P$1+F149*$P$2+G149*$P$3+H149*$P$4+I149*$P$5+J149*$P$6+K149*$P$7","v":0}]
[null,null,null,0]
[null,null,null,0]
[null,null,null,0]
[null,null,null,0]
[null,null,null,0]
[null,null,null,0]
[null,null,null,0]
[null,null,null,0]
[null,null,null,0]
[null,null,null,0]
[null,null,null,0]
[null,null,null,0]
[null,null,null,0]
[null,null,null,0]
[null,null,null,0]
[null,null,null,0]
[null,null,null,0]
[null,null,null,0]
[null,null,null,0]
[null,null,null,0]
[null,null,null,0]
[null,null,null,0]
[null,null,null,0]
[null,null,null,0]
[null,null,null,0]
[null,null,null,0]
[null,null,null,0]
[null,null,null,0]
[null,null,null,0]
[null,null,null,0]
[null,null,null,0]
[null,null,null,0]
[null,null,null,0]
[null,null,null,0]
[null,null,null,0]
[null,null,null,0]
[null,null,null,0]
[null,null,null,0]
[null,null,null,0]
[null,null,null,0]
[null,null,null,0]
[null,null,null,0]
[null,null,null,0]
[null,null,null,0]
[null,null,null,0]
[null,null,null,0]
[null,null,null,0]
[null,null,null,0]
[null,null,null,0]
[null,null,null,0]
[null,null,null,0]
[null,null,null,0]
[null,null,null,0]
[null,null,null,0]
[null,null,null,0]
[null,null,null,0]
[null,null,null,0]
[null,null,null,0]
[null,null,null,0]
[null,null,null,0]
[null,null,null,0]
[null,null,null,0]
[null,null,null,0]
[null,null,null,{"$f":" E213*$P$1+F213*$P$2+G213*$P$3+H213*$P$4+I213*$P$5+J213*$P$6+K213*$P$7","v":0}]
[null,null,null,0]
[null,null,null,0]
[null,null,null,0]
[null,null,null,0]
[null,null,null,0]
[null,null,null,0]
[null,null,null,0]
[null,null,null,0]
[null,null,null,0]
[null,null,null,0]
[null,null,null,0]
[null,null,null,0]
[null,null,null,0]
[null,null,null,0]
[null,null,null,0]
[null,null,null,0]
[null,null,null,0]
[null,null,null,0]
[null,null,null,0]
[null,null,null,0]
[null,null,null,0]
[null,null,null,0]